Cogmind - Beta 15 @@@ ROGUE MODE // 2025.10.10 @ 22:00:33 Player: Null_error Result: Self-destructed Performance ------------- Evolutions (2) 1000 Regions Visited (7) 1400 Robots Destroyed (23) 115 Value Destroyed (533) 533 Prototype IDs (24) 480 Alien Tech Used (0) 0 Bonus (367) 367 TOTAL SCORE: 3895 Bonus ------- Follower Combat Kills 87 Aligned with FarCom 300 Friendly Fire -20 Cogmind --------- Core Integrity 550/550 Matter 261/300 Energy 335/335 System Corruption 0% Temperature Cool (0) Movement Walking (123) Location -8/Materials Parts ------- > --- POWER (2) -------- Deuterium Engine Light Nuclear Core > --- PROPULSION (3) --- Improved Aluminum Leg Improved Aluminum Leg Titanium Leg > --- UTILITY (4) ------ Small Storage Unit Signal Interpreter Melee Analysis Suite Microactuators > --- WEAPON (2) ------- Flail Powered Hammer > --- INVENTORY (8) ---- Light Deuterium Engine Improved Titanium Leg Signal Interpreter Medium Reactive Plating Hacking Suite Trap Reconfigurator Flak Cannon Heavy Missile Launcher Peak State ------------ > --- POWER ------------ Deuterium Engine Light Nuclear Core > --- PROPULSION ------- Improved Aluminum Leg Improved Aluminum Leg Improved Titanium Leg > --- UTILITY ---------- Small Storage Unit Signal Interpreter Melee Analysis Suite Microactuators > --- WEAPON ----------- Flail Powered Hammer > --- INVENTORY -------- Light Deuterium Engine Hover Unit Signal Interpreter Medium Reactive Plating Trap Reconfigurator Particle Gun Flak Cannon Heavy Missile Launcher [Rating: 31] Favorites ----------- Power Ion Engine Engine Ion Engine Power Core Light Nuclear Core Propulsion Compact Wheel Treads Light Treads Leg Improved Titanium Leg Wheel Compact Wheel Flight Unit Flight Unit Utility Small Storage Unit Device Microactuators Storage Small Storage Unit Processor Signal Interpreter Weapon Advanced Beam Rifle Energy Gun Advanced Beam Rifle Ballistic Gun Assault Rifle Impact Weapon Powered Hammer Build | -11 -10 -10 -9 -9 -9 -8 -8 ------- Run | Yrd Mat Min Mat Min Exi Min Mat Slots Evolved 4 | . . . 2 . . . 2 Power 1 | . . . 1 . . . . Propulsion 1 | . . . . . . . 1 Utility 2 | . . . 1 . . . 1 Weapon . | . . . . . . . . Parts Attached 32 | 7 1 . 8 5 1 3 7 Power 8 | 2 . . 3 . . 1 2 Engine 7 | 2 . . 3 . . 1 1 Core 1 | . . . . . . . 1 Reactor . | . . . . . . . . Propulsion 11 | 2 . . 1 3 . 1 4 Treads 2 | . . . . 2 . . . Leg 6 | . . . . 1 . 1 4 Wheel 2 | 2 . . . . . . . Hover . | . . . . . . . . Flight 1 | . . . 1 . . . . Utility 7 | 1 1 . 2 1 1 . 1 Device 2 | . . . 1 1 . . . Storage 2 | 1 . . . . 1 . . Processor 3 | . 1 . 1 . . . 1 Hackware . | . . . . . . . . Protection . | . . . . . . . . Artifact . | . . . . . . . . Weapon 6 | 2 . . 2 1 . 1 . Energy Gun 2 | . . . 2 . . . . Energy Cannon . | . . . . . . . . Ballistic Gun 2 | 2 . . . . . . . Ballistic Cannon . | . . . . . . . . Launcher . | . . . . . . . . Special Weapon . | . . . . . . . . Impact Weapon 2 | . . . . 1 . 1 . Slashing Weapon . | . . . . . . . . Piercing Weapon . | . . . . . . . . Special Melee Weapon . | . . . . . . . . Unidentified Prototypes 1 | . . . 1 . . . . Parts Lost 4 | . . . 1 2 . 1 . Power 1 | . . . . 1 . . . Propulsion 2 | . . . 1 1 . . . Utility . | . . . . . . . . Weapon 1 | . . . . . . 1 . Highest Loss Streak 1 | . . . 1 1 . 1 . To Critical Strikes . | . . . . . . . . Average Backups 6 | 2 4 5 7 7 7 8 7 Power . | . 1 1 1 . . . . Propulsion 1 | 1 2 2 2 2 2 1 1 Utility 2 | . . 1 1 1 2 3 3 Weapon 2 | . 1 1 1 2 3 3 2 Tool/Special . | . . . . . . . . Unused Backups 9 | . . . 1 . . . 8 Power . | . . . . . . . . Propulsion 1 | . . . . . . . 1 Utility 4 | . . . . . . . 4 Weapon 4 | . . . 1 . . . 3 Tool/Special . | . . . . . . . . Average Slot Usage (%) 96 | . 89 100 91 98 100 91 96 Engine 18 | . 14 14 18 21 22 22 11 Treads 5 | . . . . 10 11 1 . Leg 9 | . . . . 8 11 19 24 Wheel 7 | . 28 28 18 1 . . . Device 7 | . . . 1 9 11 11 9 Storage 11 | . 14 14 11 11 11 11 9 Processor 12 | . 3 14 18 12 11 11 17 Energy Gun 7 | . . . 10 13 11 1 . Ballistic Gun 6 | . 28 28 11 . . . . Impact Weapon 8 | . . . . 8 11 14 18 Peak Build Rating 31 | 6 7 7 17 22 23 24 31 Average Rating 18 | 5 6 7 12 20 22 21 30 On Entrance 13 | . 6 7 7 17 22 23 24 Naked Turns . | . . . . . . . . Heaviest Build 26 | 14 14 14 19 22 22 22 26 Greatest Support 46 | 32 32 32 32 40 20 33 46 Greatest Overweight (x) 2 | 2 . . 1 1 1 1 . Average Overweight (x) . | . . . . . 1 . . Largest Inventory Capacity 8 | 8 8 8 8 8 8 8 8 Average Capacity 7 | 7 8 8 8 8 8 8 8 Most Carried 8 | 4 5 5 8 8 8 8 8 Average Carried 6 | 2 4 5 7 7 7 8 7 Final Capacity 8 | 8 8 8 8 8 8 8 8 Final Carried 8 | 4 5 5 8 7 8 8 8 Class Distribution -------------------- 80% | Mutant 15% | Gladiator 3% | Scavenger-Mutant Dominant Class ---------------- Mutant | -10/Materials Mutant | -10/Mines Mutant | -9/Materials Mutant | -9/Mines Mutant | -9/Exiles Mutant | -8/Mines Gladiator | -8/Materials Resources | -11 -10 -10 -9 -9 -9 -8 -8 ----------- Run | Yrd Mat Min Mat Min Exi Min Mat Matter Collected 662 | 321 85 . 115 60 . 40 41 Remotely . | . . . . . . . . Salvage Created 715 | 177 105 . 183 28 . 125 97 Parts 38 | 14 8 . 10 1 . 3 2 Haulers Intercepted 1 | . 1 . . . . . . Recyclers Shooed 1 | 1 . . . . . . . Parts Field Recycled . | . . . . . . . . Retrieved Matter . | . . . . . . . . Parts Self-Destructed . | . . . . . . . . Prevented . | . . . . . . . . Kills | -11 -10 -10 -9 -9 -9 -8 -8 ------- Run | Yrd Mat Min Mat Min Exi Min Mat Combat Hostiles Destroyed 14 | . 3 . 2 4 . 3 2 Melee 5 | . . . . 2 . 2 1 Guns 7 | . 3 . 2 2 . . . Classes Destroyed 9 | 2 2 . 3 1 . 1 . Tunneler 4 | 4 . . . . . . . Hauler 1 | . 1 . . . . . . Recycler 2 | 1 . . 1 . . . . Operator 1 | . . . 1 . . . . Watcher 1 | . . . 1 . . . . Swarmer 5 | . 3 . . 2 . . . Grunt 6 | . . . 2 . . 2 2 Duelist 1 | . . . . . . 1 . Demolisher 2 | . . . . 2 . . . Best Kill Streak 5 | 5 3 . 3 2 . 3 2 Combat Bots Only 3 | . 3 . 1 2 . 3 2 Max Kills in Single Turn 1 | 1 1 . 1 1 . 1 1 Gunslinging . | . . . . . . . . Exploded . | . . . . . . . . Melee 1 | . . . . 1 . 1 1 Uniques/NPCs Destroyed . | . . . . . . . . Combat | -11 -10 -10 -9 -9 -9 -8 -8 -------- Run | Yrd Mat Min Mat Min Exi Min Mat Hostile Shots Fired 81 | . 12 . 10 33 . 22 4 Missed 22 | . 5 . 4 5 . 6 2 Hits 59 | . 7 . 6 28 . 16 2 Melee 2 | . . . . 1 . 1 . Projectile 57 | . 7 . 6 27 . 15 2 AOE 4 | . . . . 4 . . . Critical Strikes 3 | . . . 1 . . 2 . Damage Taken 804 | . 66 . 68 371 . 269 30 Core 112 | . 8 . . 86 . 18 . Absorbed by Shields . | . . . . . . . . Core Remaining (%) 90 | 100 . 96 . . . 74 . Volleys Fired 43 | 12 9 . 11 8 . 3 . Largest 2 | 2 2 . 2 2 . 1 . Hottest 122 | 40 40 . 122 122 . 61 . Shots Fired 78 | 24 18 . 22 11 . 3 . Gun 78 | 24 18 . 22 11 . 3 . Cannon . | . . . . . . . . Launcher . | . . . . . . . . Special . | . . . . . . . . Kinetic 52 | 24 18 . 10 . . . . Thermal 26 | . . . 12 11 . 3 . Explosive . | . . . . . . . . Electromagnetic . | . . . . . . . . Robot Hit Streak 5 | 5 4 . 5 4 . 2 . Robot Miss Streak 5 | 3 2 . 5 1 . 2 . Penetration Max . | . . . . . . . . Secondary Targets 1 | . 1 . . . . . . Max Gunslinging Chain 1 | . 1 . . . . . . Shots Hit Robots 54 | 12 12 . 11 9 . 6 4 Core Hits 21 | 5 4 . 7 2 . 1 2 Critical Kills . | . . . . . . . . Critical Parts Destroyed 1 | . . . . . . 1 . Critical Strikes 1 | . . . . . . 1 . Smash 1 | . . . . . . 1 . Melee Attacks 22 | . . . . 10 . 6 6 Impact 22 | . . . . 10 . 6 6 Slashing . | . . . . . . . . Piercing . | . . . . . . . . Sneak Attacks . | . . . . . . . . Combat Hostiles . | . . . . . . . . Follow-up Attacks . | . . . . . . . . Damage Inflicted 1198 | 175 148 . 211 226 . 250 188 Guns 694 | 175 148 . 211 120 . 40 . Cannons . | . . . . . . . . Explosions . | . . . . . . . . Melee 504 | . . . . 106 . 210 188 Ramming . | . . . . . . . . Kinetic 374 | 175 148 . 51 . . . . Thermal 320 | . . . 160 120 . 40 . Explosive . | . . . . . . . . Electromagnetic . | . . . . . . . . Impact 504 | . . . . 106 . 210 188 Slashing . | . . . . . . . . Piercing . | . . . . . . . . Highest Corruption . | . . . . . . . . Average Corruption . | . . . . . . . . Corruption Purged . | . . . . . . . . Corruption Blocked . | . . . . . . . . Overload Shots . | . . . . . . . . Overflow Damage 119 | . . . . 37 . 69 13 Projectiles . | . . . . . . . . Explosions . | . . . . . . . . Melee 119 | . . . . 37 . 69 13 Knockbacks 1 | . . . . . . . 1 Impact 1 | . . . . . . . 1 Kinetic . | . . . . . . . . Secondary . | . . . . . . . . Self-Inflicted Damage . | . . . . . . . . Shots . | . . . . . . . . Rammed 1 | . . . . 1 . . . Targets Rammed 1 | . . . . 1 . . . Kicked . | . . . . . . . . Crushed . | . . . . . . . . Highest Temperature 312 | . . . 312 48 . 102 . Average Temperature 101 | . . . 153 21 . 44 . Received Heat Transfer 207 | . 9 . 27 . . 153 18 Effects 1 | . . . 1 . . . . Interference 1 | . . . 1 . . . . Siege Activations . | . . . . . . . . Martial Activations . | . . . . . . . . Shielding Activations . | . . . . . . . . Robots Disrupted . | . . . . . . . . Combat Hostiles . | . . . . . . . . Robots Corrupted 2 | . . . . . . 1 1 Combat Hostiles 2 | . . . . . . 1 1 Parts Fried 6 | . . . . 1 . 4 1 Impact Corruptions 5 | . . . . 2 . 2 1 Robots Melted . | . . . . . . . . Combat Hostiles . | . . . . . . . . Parts Melted . | . . . . . . . . Heat Transferred 592 | . . . 296 222 . 74 . Parts Sabotaged . | . . . . . . . . Parts Stolen . | . . . . . . . . Parts Stripped . | . . . . . . . . Power Chain Reactions . | . . . . . . . . Alert | -11 -10 -10 -9 -9 -9 -8 -8 ------- Run | Yrd Mat Min Mat Min Exi Min Mat Maximum Alert Level . | . . . . . . . . Low Security (%) 100 | 100 100 100 100 100 . 100 100 Level 1 . | . . . . . . . . Level 2 . | . . . . . . . . Level 3 . | . . . . . . . . Level 4 . | . . . . . . . . Level 5 . | . . . . . . . . High Security . | . . . . . . . . Max Security . | . . . . . . . . Peak Influence 169 | 10 91 31 169 74 . 50 40 Initial 42 | . . 31 . 42 . . . Average 23 | 1 36 9 51 26 . 15 4 Influence Increases 703 | 25 157 . 231 180 . 70 40 Destroy 0b10 Robot/C 380 | . 60 . 140 80 . 60 40 Destroy 0b10 Robot/NC 55 | 25 5 . 25 . . . . Destroy Leader 78 | . 12 . 46 10 . 10 . Allied During Kill 20 | . . . 20 . . . . Successful Hack 20 | . 20 . . . . . . Lose Combat Pursuer 150 | . 60 . . 90 . . . Influence Decreases 703 | 25 76 81 122 263 26 70 40 Entered New Map 143 | . . 50 . 67 26 . . Time Decay 480 | 25 76 31 72 176 . 60 40 Lost Part 40 | . . . 10 20 . 10 . Lost Ally 40 | . . . 40 . . . . Squads Dispatched 2 | . . . 1 1 . . . Investigation 1 | . . . . 1 . . . Extermination . | . . . . . . . . Reinforcement 1 | . . . 1 . . . . Assault . | . . . . . . . . Garrison . | . . . . . . . . Intercept . | . . . . . . . . Searches Triggered . | . . . . . . . . Construction Impeded . | . . . . . . . . Haulers Reinforced . | . . . . . . . . Active Scanning Responses . | . . . . . . . . Cargo Convoy Interrupts . | . . . . . . . . Stealth | -11 -10 -10 -9 -9 -9 -8 -8 --------- Run | Yrd Mat Min Mat Min Exi Min Mat Distress Signals 4 | . 2 . 1 1 . . . Communications Jammed . | . . . . . . . . Distress Signals . | . . . . . . . . Times Spotted 43 | . 9 . 17 12 . 3 2 Peak Tracking Total 6 | . 5 . 6 6 . 3 2 Tactical Retreats 7 | . 2 . . 5 . . . Traps | -11 -10 -10 -9 -9 -9 -8 -8 ------- Run | Yrd Mat Min Mat Min Exi Min Mat Traps Triggered . | . . . . . . . . Indirectly . | . . . . . . . . Trap Hack Attempts . | . . . . . . . . Triggered . | . . . . . . . . Disarmed . | . . . . . . . . Reprogrammed . | . . . . . . . . Reused . | . . . . . . . . Traps Extracted . | . . . . . . . . Installed . | . . . . . . . . Triggered . | . . . . . . . . Machines | -11 -10 -10 -9 -9 -9 -8 -8 ---------- Run | Yrd Mat Min Mat Min Exi Min Mat Machines Disabled . | . . . . . . . . Max in Single Turn . | . . . . . . . . Machines Repaired . | . . . . . . . . Machines Dismantled . | . . . . . . . . Machines Sabotaged . | . . . . . . . . Overloaded Fab Kills . | . . . . . . . . Hacking | -11 -10 -10 -9 -9 -9 -8 -8 --------- Run | Yrd Mat Min Mat Min Exi Min Mat Machines Accessed 6 | . 3 . . 1 1 . 1 Terminals 4 | . 3 . . . . . 1 Fabricators . | . . . . . . . . Repair Stations . | . . . . . . . . Recycling Units . | . . . . . . . . Scanalyzers . | . . . . . . . . Garrison Access . | . . . . . . . . Total Hacks 8 | . 5 . . 1 1 . 1 Successful 6 | . 3 . . 1 1 . 1 Failed 1 | . 1 . . . . . . Catastrophic 1 | . 1 . . . . . . Database Lockouts 1 | . 1 . . . . . . Manual 11 | . 8 . . . 2 . 1 Terminals 6 | . 5 . . . . . 1 Fabricators . | . . . . . . . . Repair Stations . | . . . . . . . . Recycling Units . | . . . . . . . . Scanalyzers . | . . . . . . . . Garrison Access . | . . . . . . . . Terminal Hacks 4 | . 2 . . 1 1 . . Robot Analysis 1 | . 1 . . . . . . Open Door 1 | . . . . 1 . . . Unreport Threat 1 | . 1 . . . . . . Proto ID Catalog 1 | . . . . . 1 . . Fabricator Hacks . | . . . . . . . . Repair Station Hacks . | . . . . . . . . Recycling Unit Hacks . | . . . . . . . . Scanalyzer . | . . . . . . . . Garrison Access Hacks . | . . . . . . . . Unauthorized Hacks 2 | . 1 . . . . . 1 Terminals 2 | . 1 . . . . . 1 Skim 2 | . 1 . . . . . 1 Fabricators . | . . . . . . . . Repair Stations . | . . . . . . . . Recycling Units . | . . . . . . . . Scanalyzers . | . . . . . . . . Garrison Access . | . . . . . . . . Data Cores Recovered . | . . . . . . . . Used . | . . . . . . . . Hacking Detections 3 | . 3 . . . . . . Full Trace Events 1 | . 1 . . . . . . Feedback Events . | . . . . . . . . Feedback Blocked . | . . . . . . . . Robot Schematics Acquired . | . . . . . . . . Robots Built . | . . . . . . . . Authchips . | . . . . . . . . Time . | . . . . . . . . Total Robot Build Rating . | . . . . . . . . Part Schematics Acquired . | . . . . . . . . Parts Built . | . . . . . . . . Authchips . | . . . . . . . . Time . | . . . . . . . . Total Part Build Rating . | . . . . . . . . Parts Repaired . | . . . . . . . . Time . | . . . . . . . . Parts Recycled . | . . . . . . . . Recycled Matter . | . . . . . . . . Retrieved Matter . | . . . . . . . . Retrieved Components . | . . . . . . . . Parts Scanalyzed . | . . . . . . . . Part Schematics Acquired . | . . . . . . . . Parts Damaged . | . . . . . . . . Bothacking | -11 -10 -10 -9 -9 -9 -8 -8 ------------ Run | Yrd Mat Min Mat Min Exi Min Mat Used RIF Installer . | . . . . . . . . Robots Hacked . | . . . . . . . . Non-combat . | . . . . . . . . Combat . | . . . . . . . . Robot Hacks Applied . | . . . . . . . . Relay Couplers Released . | . . . . . . . . Fabnet Peak Effective % . | . . . . . . . . Robots Rewired . | . . . . . . . . Allies Hacked . | . . . . . . . . Hacks Repelled . | . . . . . . . . Allies | -11 -10 -10 -9 -9 -9 -8 -8 -------- Run | Yrd Mat Min Mat Min Exi Min Mat Total Allies 2 | . . 2 . . . . . Largest Group 2 | . . 2 2 . . . . Highest-Rated Group 46 | . . 46 46 . . . . Highest-Rated Ally 31 | . . 31 31 . . . . Total Orders . | . . . . . . . . Ally Attacks 16 | . . . 16 . . . . Total Damage 271 | . . . 271 . . . . Kills 7 | . . . 7 . . . . Allies Corrupted . | . . . . . . . . Allies Melted . | . . . . . . . . Intel | -11 -10 -10 -9 -9 -9 -8 -8 ------- Run | Yrd Mat Min Mat Min Exi Min Mat Active Infowar (turns) 89 | . . . 89 . . . . Optics 89 | . . . 89 . . . . Robot Analysis Total 1 | . 1 . . . . . . Derelict Logs Recovered 1 | . . . . 1 . . . Drone Launches . | . . . . . . . . Drone Recoveries . | . . . . . . . . Exploration | -11 -10 -10 -9 -9 -9 -8 -8 ------------- Run | Yrd Mat Min Mat Min Exi Min Mat Turns Passed 2317 | 112 250 136 260 559 496 211 293 Spaces Moved 1330 | 64 132 118 186 285 248 145 152 Core 22 | 22 . . . . . . . Treads 27 | . . . . 26 . 1 . Legs 748 | . . . . 204 248 144 152 Wheels 533 | 42 132 118 186 55 . . . Hover . | . . . . . . . . Flight . | . . . . . . . . Fastest Speed 50 | 50 100 100 100 115 200 125 120 Average Speed 140 | 89 100 100 104 175 200 127 123 Slowest Speed 200 | 150 100 100 115 200 200 200 125 Overloaded Moves . | . . . . . . . . Propulsion Burnouts . | . . . . . . . . Robots Hopped . | . . . . . . . . Potential Cave-ins . | . . . . . . . . Cave-ins Triggered . | . . . . . . . . Exploration Rate (%) 35 | 3 33 26 22 78 63 41 15 Regions Visited 7 Branch Regions 4 Pre-discovered Areas 1 | . . . . 1 . . . Known Exits Taken 6 | . 1 1 1 1 1 1 . Unknown Exits Taken 1 | 1 . . . . . . . Scrap Searched 2 | . . . . 1 . 1 . Spaces Dug . | . . . . . . . . Terrain Destroyed . | . . . . . . . . Melee . | . . . . . . . . Projectile . | . . . . . . . . AOE . | . . . . . . . . Terrain Rammed . | . . . . . . . . Walls Destroyed . | . . . . . . . . Machines Disabled . | . . . . . . . . Actions | -11 -10 -10 -9 -9 -9 -8 -8 --------- Run | Yrd Mat Min Mat Min Exi Min Mat Total 1666 | 91 231 136 228 318 250 160 252 Wait 216 | 6 89 19 15 6 . . 81 Move 1323 | 63 131 117 185 284 247 144 152 Hop . | . . . . . . . . Pick Up 14 | 3 1 . 4 2 1 1 2 Fast Attach 13 | 6 1 . 3 . . 2 1 Attach 3 | . . . . 2 . . 1 Detach . | . . . . . . . . Swap 20 | 1 . . 6 5 1 2 5 Drop 12 | . . . 4 . 1 2 5 Fire 43 | 12 9 . 11 8 . 3 . Melee 21 | . . . . 10 . 6 5 Ram 1 | . . . . 1 . . . Kick . | . . . . . . . . Crush . | . . . . . . . . Escape Stasis . | . . . . . . . . Rewire . | . . . . . . . . Trap . | . . . . . . . . Miscellaneous . | . . . . . . . . Route ------- -11/Scrapyard -10/Materials -10/Mines -9/Materials -9/Mines (discovered 3 exits: *Mat x2 / *Exi) -9/Exiles -8/Mines -8/Materials History --------- Turn | Location | Event 5 | -11/Scrapyard | Discovered new exit (range 14) 113 | -11/Scrapyard | Entered Materials 130 | -10/Materials | Central database locked down 314 | -10/Materials | Build established: Mutant 341 | -10/Materials | Discovered new exit (range 12) 362 | -10/Materials | Identified exit to Mines 363 | -10/Materials | Entered Mines 379 | -10/Mines | Discovered new exit (range 6) 384 | -10/Mines | Identified exit to Materials 499 | -10/Mines | Entered Materials 499 | -9/Materials | Accompanied by 2 allies 499 | -9/Materials | Evolved 2 slots: Power x1, Utility x1 504 | -9/Materials | Led the pair of lost Derelicts to an unsafe place 689 | -9/Materials | Discovered new exit (range 16) 757 | -9/Materials | Identified exit to Mines 759 | -9/Materials | Entered Mines 766 | -9/Mines | Discovered new exit (range 7) 772 | -9/Mines | Identified exit to Materials 783 | -9/Mines | Assembled infested the area 788 | -9/Mines | Assisted by a Guerilla fighting off Assembled 794 | -9/Mines | Received a Rocket Launcher from a helpful Derelict 873 | -9/Mines | Met a Derelict shopkeep closing up shop 1030 | -9/Mines | Discovered exit to Materials (range 13) 1274 | -9/Mines | Learned location of Zion (-6) 1308 | -9/Mines | Deemed a non-threat by the Exiles lab entrance 1308 | -9/Mines | Discovered new exit (range 5) 1314 | -9/Mines | Identified exit to Exiles 1318 | -9/Mines | Entered Exiles 1366 | -9/Exiles | Met 8R-AWN 1396 | -9/Exiles | Met EX-HEX 1464 | -9/Exiles | Met EX-BIN 1486 | -9/Exiles | Aligned with FarCom system 1488 | -9/Exiles | Given EX-Vault access code 1542 | -9/Exiles | Opened EX-Vault 1566 | -9/Exiles | Found Trap Reconfigurator 1605 | -9/Exiles | Warned to stay clear of 0b10 Research branches 1675 | -9/Exiles | Met EX-DEC 1786 | -9/Exiles | Discovered new exit (range 14) 1812 | -9/Exiles | Identified exit to Mines 1814 | -9/Exiles | Left Exiles lab with Trap Reconfigurator 1814 | -9/Exiles | Entered Mines 2020 | -8/Mines | Discovered exit to Materials (range 5) 2025 | -8/Mines | Entered Materials 2025 | -8/Materials | Evolved 2 slots: Propulsion x1, Utility x1 2267 | -8/Materials | Build established: Gladiator 2318 | -8/Materials | Self-destructed Last Messages --------------- 02112_ Dropped Imp. Aluminum Leg. 02113_ R-06 Scavenger inserts Ion Engine into recycling unit. 02116_ R-06 Scavenger inserts Corrupted Aluminum Leg into recycling unit. 02119_ R-06 Scavenger inserts Imp. Aluminum Leg into recycling unit. 02122_ R-06 Scavenger inserts Hover Unit into recycling unit. 02129_ R-06 Scavenger collects Imp. Aluminum Leg. 02134_ Acquired 1 matter. 02170_ Dropped Particle Gun. 02171_ Acquired Hacking Suite. 02192_ Connecting with Terminal... >>Trojan(Skim) Trojan loaded successfully. Testing... Terminal linked with 0 systems. Please expand to 4 more systems! Map ----- +----------------------------------------------------+ | | | | | | | | | | | | | | | | | | | | | | | | | | | | | ?????????????????????????????????????????????????? | | ?????????????????????????????????????????????????? | | ##########???????????????????????????????????????? | | # #?###########???????????????????????????? | | # """ #?# #???????????????????????????? | | #! """ #?# !! ########????????????????????? | | # "" #?# [ !! # #????????????????????? | | #!! #?# # #????????????????????? | | #!! "" #?# #"" ] #######??????????????? | | #! Y" #?# #"T ##!!!!##?????????????? | | # "" #?# #"" ] #! !#?????????????? | | #% #?# # @ # #?????????????? | | ##+#############+######+##### #######???????? | | ??? | | ??? | | ??? | | ###########+############ ###################???? | | ?????# #???????# #?????????????????????? | | ?????# #???????# #?????#######?????????? | | ?????# #???????# ####### ##########? | | ?????# #???????# | | ?????# #???????# = #??? | | ?????# #???????# #??? | | ?????# #???????########### ###+??????? | | ?????# !#?????????????????#######?????????? | | ?????###########?????????????????????????????????? | | ?????????????????????????????????????????????????? | | ?????????????????????????????????????????????????? | | ?????????????????????????????????????????????????? | | ?????????????????????????????????????????????????? | | ?????????????????????????????????????????????????? | | ?????????????????????????????????????????????????? | | ?????????????????????????????????????????????????? | | ?????????????????????????????????????????????????? | | ?????????????????????????????????????????????????? | | ?????????????????????????????????????????????????? | +----------------------------------------------------+ Best States ------------- Heat Dissipation 50 Energy Generation 23 Energy Capacity 400 Matter Stores 300 Matter Capacity 300 Sight Range 18 Terrain Scan Density 10 Melee Speed Boost 20 Evasion (%) 55 Melee Accuracy 5 Recoil Reduction 2 Item Schematics ----------------- None Robot Schematics ------------------ None Fabricated ------------ Nothing Repaired ---------- Nothing Alien Tech Used ----------------- None Achievements -------------- None Challenges ------------ None Game ------ Seed RocketLegVibroblade Manual? 0 Play Time 00:21:16 Cumulative 75.6 hours Start 2025.07.19 @ 19:55:51 End 2025.10.10 @ 22:00:33 Sessions 7 Manual Loads 0 Difficulty Rogue Special Mode None Game No. 91 Rogue 91 Adventurer 0 Explorer 0 Win Type - Total 1 Types 1/0/0/0/0/0/0/0/0/0 Lore% 26 Gallery% 46 Achievement% 34 Wizard Run 0 Options --------- Layout 1 ASCII 0 Keyboard 0 Movement Numpad Keybinds 0 Fullscreen 1 Font 24/Smallcaps Map View 50x35 Zoom Use 14% Tactical HUD 1 Map Filters NONE Filters LOW_CONTRAST(5,10,15) Steam 1 RUN: 50734461-0778-49df-88f5-694f27e7679c